fUST/lending_fUST_20241129
["ID","MTS","AMOUNT","RATE_DAILY","PERIOD"]
[343687678,1732860638162,-500.0,0.00027274,2]
[343687679,1732860638171,-500.0,0.00027274,2]
[343687680,1732860638182,-500.0,0.00027274,2]
[343687681,1732860638191,-500.0,0.00027274,2]
[343687682,1732860638205,-500.0,0.00027274,2]
[343687683,1732860638215,-500.0,0.00027274,2]
[343687684,1732860638225,-174.35550606,0.00027274,2]
[343687685,1732860638234,-500.0,0.00027274,2]
[343687686,1732860638244,-500.0,0.00027274,2]
[343687687,1732860638254,-500.0,0.00027274,2]
[343687688,1732860638263,-500.0,0.00027274,2]
[343687689,1732860638273,-500.0,0.00027274,2]
[343687690,1732860638282,-500.0,0.00027274,2]
[343687691,1732860638291,-500.0,0.00027274,2]
[343687692,1732860638301,-500.0,0.00027274,2]
[343687693,1732860638311,-639.91336003,0.00027274,2]
[343687694,1732860638322,-500.0,0.00027274,2]
[343687695,1732860638332,-500.0,0.00027274,2]
[343687696,1732860638342,-298.39645821,0.00027274,2]
[343687697,1732860638876,-201.60354179,0.00027274,2]
[343687698,1732860638886,-500.0,0.00027274,2]
[343687699,1732860638896,-500.0,0.00027274,2]
[343687700,1732860638906,-500.0,0.00027274,2]
[343687701,1732860638916,-500.0,0.00027274,2]
[343687702,1732860638925,-500.0,0.00027274,2]
[343687703,1732860638935,-500.0,0.00027274,2]
[343687704,1732860638946,-500.0,0.00027274,2]
[343687705,1732860638955,-500.0,0.00027274,2]
[343687706,1732860638965,-500.0,0.00027274,2]
[343687707,1732860638976,-500.0,0.00027274,2]
[343687708,1732860638986,-500.0,0.00027274,2]
[343687709,1732860638996,-450.0,0.00027274,2]
[343687710,1732860639006,-500.0,0.00027274,2]
[343687711,1732860639016,-500.0,0.00027274,2]
[343687712,1732860639025,-492.722993,0.00027275,2]
[343687736,1732860642992,-608.207007,0.00027275,2]
[343687737,1732860643002,-500.0,0.00027397,2]
[343687738,1732860643012,-1387.30856854,0.00027551,2]
[343687739,1732860643023,-600.0,0.00027616,2]
[343687740,1732860643033,-243.0,0.00027671,2]
[343687741,1732860643044,-355.835275,0.00027805,2]
[343687742,1732860643054,-151.0,0.00027877,7]
[343687743,1732860643064,-600.0,0.00027904,2]
[343687744,1732860643075,-1387.30856854,0.00028003,2]
[343687745,1732860643085,-355.835275,0.00028153,2]
[343687746,1732860643095,-625.34774244,0.00028192,2]
[343687747,1732860643105,-1363.91561568,0.000282,2]
[343687748,1732860643117,-1335.1488007,0.000282,2]
[343687756,1732860645896,-7282.87379346,0.000282,2]
[343687766,1732861114029,1169.27083333,0.00022,2]
[343687767,1732861321274,163.104001,0.00013973,2]
[343687769,1732861443867,1169.27083333,0.00022,2]
[343687775,1732861537111,-163.104001,0.00022174,2]
[343687776,1732861537135,-140.30852015,0.000228,2]
[343687778,1732861630136,-151.78267655,0.000226,2]
[343687779,1732861636081,-903.87096483,0.000226,2]
[343687780,1732861636109,-113.61719195,0.000226,2]
[343687781,1732861636131,-168.627566,0.00026005,2]
[343687782,1732861636151,-1433.1901644,0.00026144,2]
[343687783,1732861636171,-300.0,0.00026582,2]
[343687784,1732861636192,-5653.0663015,0.00026583,2]
[343687785,1732861636212,-182.0,0.00027,2]
[343687786,1732861636231,-182.0,0.00027671,2]
[343687787,1732861636251,-172.095175,0.00027805,2]
[343687788,1732861636273,-892.91474307,0.000281,2]
[343687789,1732861636294,-43136.77325892,0.000281,2]
[343687790,1732861653113,-1186.27424908,0.000281,2]
[343687791,1732861653142,-500.0,0.00028172,2]
[343687792,1732861653165,-297.15061178,0.00028172,2]
[343687793,1732861653188,-500.0,0.00028172,2]
[343687794,1732861653210,-500.0,0.00028172,2]
[343687795,1732861653231,-450.58861412,0.00028172,2]
[343687796,1732861653253,-500.0,0.00028172,2]
[343687797,1732861653279,-500.0,0.00028172,2]
[343687798,1732861653302,-500.0,0.00028172,2]
[343687799,1732861653324,-119.35181412,0.00028172,2]
[343687800,1732861749095,-1169.27083333,0.00022857,2]
[343687801,1732861749117,-905.99999933,0.00023,2]
[343687850,1732861832447,-1784.85676234,0.00026,30]
[343687851,1732861832457,-867.06785539,0.00028099,2]
[343687852,1732861832467,-300.0,0.00028198,2]
[343687853,1732861832476,-258.63748557,0.00028198,2]
[343687854,1732861832488,-41.36251443,0.00028198,2]
[343687855,1732861832497,-500.0,0.00028199,2]
[343687856,1732861832507,-186.33724738,0.00028199,2]
[343687857,1732861832516,-193.64023819,0.00028199,2]
[343687874,1732861838261,-391.03948785,0.00028173,5]
[343687875,1732861838361,-171.62297525,0.00028173,5]
[343687876,1732861838370,-58.50416828,0.00028199,2]
[343687877,1732861838380,-196.16880398,0.00028199,2]
[343687878,1732861838389,-200.1141766,0.00028199,2]
[343687879,1732861838398,-500.0,0.00028199,2]
[343687880,1732861838407,-500.0,0.00028199,2]
[343687881,1732861838417,-500.0,0.00028199,2]
[343687882,1732861838426,-500.0,0.00028199,2]
[343687883,1732861838435,-216.73206824,0.00028199,2]
[343687884,1732861838444,-500.0,0.00028199,2]
[343687885,1732861838454,-500.0,0.00028199,2]
[343687886,1732861838464,-500.0,0.00028199,2]
[343687887,1732861838474,-500.0,0.00028199,2]
[343687888,1732861838484,-500.0,0.00028199,2]
[343687889,1732861838495,-500.0,0.00028199,2]
[343687890,1732861838504,-500.0,0.00028199,2]
[343687891,1732861838514,-500.0,0.00028199,2]
[343687892,1732861838523,-500.0,0.00028199,2]
[343687893,1732861838533,-500.0,0.00028199,2]
[343687894,1732861838542,-156.22796194,0.00028199,2]
[343687905,1732861843283,-343.77203806,0.00028199,2]
[343687906,1732861843293,-500.0,0.00028199,2]
[343687907,1732861843303,-500.0,0.00028199,2]
[343687908,1732861843317,-171.45578643,0.00028199,2]
[343687915,1732862019221,163.104001,0.00013973,2]
[343687918,1732862422256,1169.27083333,0.00022,2]
[343687920,1732862695343,163.104001,0.00013973,2]
[343687922,1732862732125,-495.67251768,0.000226,2]
[343687923,1732862745293,1169.27083333,0.00022,2]
[343687924,1732862753207,-442.97273,0.000289,120]
[343687925,1732862753505,-157.3660874,0.00028767,30]
[343687926,1732862753532,-303.04,0.000289,31]
[343687927,1732862753553,-303.04,0.000289,31]
[343687928,1732862753575,-303.04,0.000289,31]
[343687929,1732862753597,-303.04,0.000289,31]
[343687930,1732862753618,-303.04,0.000289,31]
[343687931,1732862753640,-303.04,0.000289,31]
[343687932,1732862753661,-303.04,0.000289,31]
[343687933,1732862753682,-303.04,0.000289,31]
[343687934,1732862753704,-303.04,0.000289,31]
[343687935,1732862753725,-303.04,0.000289,31]
[343687936,1732862753747,-303.04,0.000289,31]
[343687937,1732862753767,-303.04,0.000289,31]
[343687938,1732862753789,-2126.7011826,0.00029,30]
[343687939,1732862765793,343.0,0.00027,90]
[343687941,1732862825106,-163.104001,0.00024224,2]
[343687942,1732862825127,-976.69640758,0.000244,2]
[343687943,1732862843097,-192.57442575,0.000244,2]
[343687944,1732862843119,-560.6562416,0.00026742,2]
[343687945,1732862843142,-1170.320278,0.00026787,2]
[343687946,1732862843162,-378.82,0.0002759,3]
[343687947,1732862843183,-189.41,0.0002759,3]
[343687948,1732862843204,-568.25,0.0002759,3]
[343687949,1732862843230,-381.87,0.0002759,10]
[343687950,1732862843250,-300.0,0.00027598,2]
[343687951,1732862843273,-300.0,0.00027598,2]
[343687952,1732862843295,-9079.66241588,0.00027598,2]
[343687953,1732862849082,-399.62217966,0.00027598,2]
[343687954,1732862852145,-656.02401491,0.00027598,2]
[343687958,1732862938629,266.7,0.000289,31]
[343687959,1732862938696,266.7,0.000289,31]
[343687960,1732862938751,266.7,0.000289,31]
[343687961,1732862938801,266.7,0.000289,31]
[343687962,1732862938880,266.7,0.000289,31]
[343687963,1732862938928,266.7,0.000289,31]
[343687964,1732862938978,266.7,0.000289,31]
[343687965,1732862939047,266.7,0.000289,31]
[343687966,1732862939108,266.7,0.000289,31]
[343687967,1732862939233,266.7,0.000289,31]
[343687968,1732862939294,266.7,0.000289,31]
[343687969,1732862939471,266.7,0.000289,31]
[343687987,1732863032613,-1169.27083333,0.000265,2]
[343687988,1732863032623,-200.22986443,0.00027499,2]
[343687989,1732863032632,-838.24669392,0.00027513,2]
[343687990,1732863032642,-189.41,0.0002759,3]
[343687991,1732863032651,-353.94245832,0.0002759,3]
[343687992,1732863032662,-214.28754168,0.0002759,3]
[343687993,1732863032672,-300.0,0.00027597,2]
[343687994,1732863032681,-2416.61195998,0.00027597,2]
[343688006,1732863038654,-5036.38804002,0.00027597,2]
[343688007,1732863038664,-3070.29016642,0.00027598,2]
[343688008,1732863038674,-176.50108453,0.00027599,2]
[343688009,1732863038683,-500.0,0.00027599,2]
[343688010,1732863038693,-500.0,0.00027599,2]
[343688011,1732863038703,-500.0,0.00027599,2]
[343688012,1732863038712,-500.0,0.00027599,2]
[343688013,1732863038722,-500.0,0.00027599,2]
[343688014,1732863038733,-500.0,0.00027599,2]
[343688015,1732863038743,-500.0,0.00027599,2]
[343688016,1732863038753,-491.88399861,0.00027599,2]
[343688017,1732863038762,-500.0,0.00027599,2]
[343688018,1732863038771,-500.0,0.00027599,2]
[343688019,1732863038781,-500.0,0.00027599,2]
[343688020,1732863038790,-500.0,0.00027599,2]
[343688021,1732863038800,-500.0,0.00027599,2]
[343688022,1732863038810,-500.0,0.00027599,2]
[343688023,1732863038819,-500.0,0.00027599,2]
[343688024,1732863038828,-500.0,0.00027599,2]
[343688025,1732863038838,-500.0,0.00027599,2]
[343688026,1732863038847,-500.0,0.00027599,2]
[343688027,1732863038856,-500.0,0.00027599,2]
[343688028,1732863038866,-500.0,0.00027599,2]
[343688029,1732863038875,-500.0,0.00027599,2]
[343688030,1732863038885,-500.0,0.00027599,2]
[343688031,1732863038894,-500.0,0.00027599,2]
[343688032,1732863038916,-500.0,0.00027599,2]
[343688033,1732863038927,-500.0,0.00027599,2]
[343688034,1732863038936,-500.0,0.00027599,2]
[343688035,1732863038946,-500.0,0.00027599,2]
[343688036,1732863038956,-500.0,0.00027599,2]
[343688037,1732863038967,-230.64091876,0.00027599,2]
[343688038,1732863038978,-500.0,0.00027599,2]
[343688039,1732863038989,-167.43054,0.00027599,2]
[343688040,1732863038999,-500.0,0.00027599,2]
[343688041,1732863039008,-294.80527457,0.00027599,2]
[343688042,1732863039019,-500.0,0.00027599,2]
[343688043,1732863039028,-269.31869204,0.00027599,2]
[343688044,1732863039104,-230.68130796,0.00027599,2]
[343688045,1732863039114,-500.0,0.00027599,2]
[343688046,1732863039124,-500.0,0.00027599,2]
[343688047,1732863039134,-500.0,0.00027599,2]
[343688048,1732863039144,-500.0,0.00027599,2]
[343688049,1732863039154,-500.0,0.00027599,2]
[343688050,1732863039164,-500.0,0.00027599,2]
[343688051,1732863039174,-500.0,0.00027599,2]
[343688052,1732863039183,-500.0,0.00027599,2]
[343688053,1732863039193,-500.0,0.00027599,2]
[343688054,1732863039202,-500.0,0.00027599,2]
[343688055,1732863039212,-500.0,0.00027599,2]
[343688056,1732863039222,-500.0,0.00027599,2]
[343688057,1732863039234,-500.0,0.00027599,2]
[343688058,1732863039243,-500.0,0.00027599,2]
[343688059,1732863039252,-862.43769415,0.000276,2]
[343688060,1732863039355,-1714.2701541,0.000276,2]
[343688067,1732863040562,-1873.45970384,0.000276,2]
[343688068,1732863040572,-872.34403535,0.000276,2]
[343688069,1732863040582,-7737.08158081,0.000276,2]
[343688098,1732863043441,-140.66817921,0.000276,2]
[343688099,1732863043452,-42810.28959418,0.000276,2]
[343688100,1732863043464,-3238.62326087,0.000276,2]
[343688101,1732863043475,-5962.54253368,0.000276,2]
[343688123,1732863046315,-393.520004,0.000276,2]
[343688124,1732863046357,-771.39202123,0.000276,2]
[343688125,1732863046370,-16963.1070676,0.000276,2]
[343688128,1732863090862,93.08,0.00028,120]
[343688141,1732863459141,163.104001,0.00013973,2]
[343688149,1732863717256,1169.27083333,0.00022,2]
[343688169,1732863771728,300.0,0.00022,6]
[343688170,1732863776713,300.0,0.00022,6]
[343688180,1732863860731,300.0,0.00022,10]
[343688181,1732863875135,300.0,0.00022,11]
[343688182,1732863908377,260.0,0.00022,6]
[343688183,1732863914121,260.0,0.00022,10]
[343688184,1732863945105,-300.0,0.00023,11]
[343688185,1732863945125,-300.0,0.00023,12]
[343688186,1732863945147,-1169.27083333,0.000232,2]
[343688187,1732863945167,-300.0,0.00023799,2]
[343688188,1732863945188,-1657.89348268,0.00023799,2]
[343688191,1732864030100,-300.0,0.00023799,2]
[343688192,1732864030124,-2406.19185295,0.00023799,2]
[343688193,1732864030162,-1869.80814705,0.00023799,2]
[343688194,1732864030187,-500.0,0.000238,2]
[343688195,1732864030210,-500.0,0.000238,2]
[343688196,1732864030233,-500.0,0.000238,2]
[343688197,1732864030256,-500.0,0.000238,2]
[343688198,1732864030277,-172.73916875,0.000238,2]
[343688199,1732864030301,-1169.27083333,0.00024,2]
[343688200,1732864030322,-544.6,0.00025,3]
[343688201,1732864030344,-1449.1981005,0.00025,2]
[343688202,1732864030367,-168.627566,0.00025495,2]
[343688203,1732864030390,-1087.3241288,0.00025653,2]
[343688204,1732864030412,-3059.8893733,0.00025713,2]
[343688205,1732864030435,-420.0,0.00025814,2]
[343688206,1732864030461,-163.104001,0.00026274,2]
[343688207,1732864030482,-500.0,0.00027,3]
[343688208,1732864030504,-500.0,0.00027,3]
[343688209,1732864030529,-300.0,0.00027,14]
[343688210,1732864030549,-280.0,0.00027,20]
[343688211,1732864030571,-279.67247378,0.00027,14]
[343688212,1732864030593,-184.56228406,0.00027361,2]
[343688213,1732864030615,-152.20795971,0.000274,2]
[343688214,1732864030721,-175.20113142,0.000274,2]
[343688215,1732864030742,-500.94417117,0.00027473,5]
[343688216,1732864030762,-378.82,0.0002749,3]
[343688217,1732864030784,-500.0,0.00027499,2]
[343688218,1732864030807,-500.0,0.00027499,2]
[343688219,1732864030829,-500.0,0.00027499,2]
[343688220,1732864030852,-500.0,0.00027499,2]
[343688221,1732864030876,-199.42280829,0.00027499,2]
[343688222,1732864030901,-247.84899097,0.00027499,2]
[343688223,1732864030922,-784.7781215,0.000275,2]
[343688224,1732864030945,-2225.08377604,0.000275,2]
[343688225,1732864030967,-76011.68693298,0.000275,2]
[343688226,1732864030989,-67042.59523691,0.000275,2]
[343688227,1732864041101,-540.19553416,0.000275,2]
[343688228,1732864052149,-202.58956523,0.000275,2]
[343688229,1732864107453,163.104001,0.00013973,2]
[343688299,1732864232863,-1169.27083333,0.000266,2]
[343688300,1732864232872,-300.0,0.00026999,2]
[343688301,1732864232881,-4464.95502324,0.00027,30]
[343688302,1732864233032,-10524.81289826,0.00027,30]
[343688316,1732864239152,-18620.15112183,0.00027,30]
[343688322,1732864240592,-497.19458759,0.00027,30]
[343688323,1732864240601,-153.30098994,0.000272,2]
[343688324,1732864240611,-216.1270233,0.000274,2]
[343688325,1732864240622,-216.12702329,0.0002745,2]
[343688326,1732864240632,-523.18541433,0.000275,2]
[343688327,1732864240641,-4741.84486683,0.000275,2]
[343688328,1732864240701,-300.68798366,0.000275,2]
[343688342,1732864244862,-1227.015,0.000275,2]
[343688343,1732864244877,-9639.4,0.000275,2]
[343688344,1732864245056,-11813.73204609,0.000275,2]
[343688358,1732864246229,167.0,0.00022,2]
[343688382,1732864747345,163.104001,0.00013973,2]
[343688384,1732864952124,1169.27083333,0.00021583,2]
[343688388,1732865143125,-645.78770064,0.000226,2]
[343688390,1732865212985,1169.27083333,0.000218,2]
[343688391,1732865244177,-251.302716,0.00025715,2]
[343688392,1732865244199,-1307.12193676,0.00027235,2]
[343688393,1732865244221,-152.20795971,0.000274,2]
[343688394,1732865244242,-300.0,0.00027472,2]
[343688395,1732865244265,-300.0,0.00027472,2]
[343688396,1732865244286,-501.7665431,0.00027473,5]
[343688397,1732865244307,-158.66741536,0.00027473,5]
[343688398,1732865244329,-187.96646987,0.00027473,5]
[343688399,1732865244350,-500.0,0.00027473,5]
[343688400,1732865244372,-500.0,0.00027473,5]
[343688401,1732865244394,-500.0,0.00027473,5]
[343688402,1732865244417,-46.24183965,0.00027473,2]
[343688403,1732865247099,-169.88518364,0.00027473,2]
[343688404,1732865247121,-156.63877867,0.0002749,3]
[343688405,1732865252109,-17.20122133,0.0002749,3]
[343688406,1732865252130,-521.56,0.0002749,3]
[343688407,1732865252152,-220.0,0.00027496,7]
[343688408,1732865252173,-278.69,0.00027498,16]
[343688409,1732865252196,-5000.0,0.00027498,2]
[343688410,1732865252217,-500.0,0.00027499,2]
[343688411,1732865252238,-5000.0,0.00027499,2]
[343688412,1732865252259,-5000.0,0.00027499,2]
[343688413,1732865252280,-5000.0,0.00027499,2]
[343688414,1732865252302,-5000.0,0.00027499,2]
[343688415,1732865252324,-2055.93661064,0.00027499,2]
[343688416,1732865252350,-500.0,0.00027499,2]
[343688417,1732865252371,-297.15061178,0.00027499,2]
[343688418,1732865252392,-619.35181412,0.00027499,2]
[343688419,1732865252414,-500.0,0.00027499,2]
[343688420,1732865252436,-500.0,0.00027499,2]
[343688421,1732865252458,-255.52975271,0.00027499,2]
[343688422,1732865252480,-500.0,0.00027499,2]
[343688423,1732865252501,-500.0,0.00027499,2]
[343688424,1732865252523,-500.0,0.00027499,2]
[343688425,1732865252545,-500.0,0.00027499,2]
[343688426,1732865252567,-500.0,0.00027499,2]
[343688427,1732865252597,-605.63961911,0.00027499,2]
[343688428,1732865252618,-661.20689564,0.000275,2]
[343688429,1732865252642,-1011.24710541,0.000275,2]
[343688430,1732865252663,-984.19773904,0.000275,2]
[343688431,1732865252684,-1363.91561569,0.000275,2]
[343688432,1732865252705,-222000.0,0.000275,2]
[343688433,1732865252725,-502.35003116,0.00027573,5]
[343688434,1732865252745,-500.0,0.00027573,5]
[343688435,1732865252767,-215921.61533315,0.000276,2]
[343688452,1732865414471,156.8,0.00025667,2]
[343688504,1732865432837,-1012.47083333,0.00025667,2]
[343688505,1732865432847,-500.0,0.00027499,2]
[343688506,1732865432856,-480.96550835,0.000275,2]
[343688507,1732865432866,-885.77796519,0.000275,2]
[343688508,1732865432875,-347.68,0.0002759,3]
[343688509,1732865432885,-300.0,0.00027598,2]
[343688510,1732865432895,-195.05886141,0.00027599,2]
[343688511,1732865432904,-289.51551323,0.00027599,2]
[343688512,1732865432914,-505.62355271,0.000276,2]
[343688513,1732865432923,-289.7772968,0.000276,2]
[343688523,1732865433340,-0.193544,0.000276,2]
[343688530,1732865439149,-150.83375629,0.000276,2]
[343688531,1732865439160,-52884.23206035,0.000276,2]
[343688532,1732865439302,-68070.45750531,0.000276,2]
[343688533,1732865439314,-142459.36543029,0.000276,2]
[343688579,1732865443829,-1801.65714986,0.000276,2]
[343688580,1732865445750,170.983178,0.00013973,2]
[343688603,1732865446755,-114190.59734,0.000276,2]
[343688608,1732865924699,1169.27083333,0.00021875,2]
[343688609,1732866047807,169.231918,0.00013973,2]
[343688611,1732866250845,1169.27083333,0.000216,2]
[343688613,1732866337144,-510.68403598,0.00023,2]
[343688614,1732866427145,-1169.27083333,0.000226,2]
[343688615,1732866427167,-302.66710251,0.00025,2]
[343688616,1732866427193,-302.66710251,0.0002525,2]
[343688617,1732866427214,-500.0,0.00025355,2]
[343688618,1732866427242,-250.0,0.00025355,2]
[343688619,1732866427263,-302.93925795,0.000255,2]
[343688620,1732866427284,-1000.0,0.0002558,2]
[343688621,1732866427308,-223.3026612,0.00025651,2]
[343688622,1732866427330,-1000.0,0.00026068,2]
[343688623,1732866427351,-167.773353,0.00026073,2]
[343688624,1732866427373,-2774.19279343,0.00026381,2]
[343688625,1732866427396,-300.0,0.00026458,2]
[343688626,1732866427417,-8047.0,0.00026459,2]
[343688627,1732866427439,-300.0,0.00026459,2]
[343688628,1732866427461,-10120.9435042,0.0002646,2]
[343688629,1732866427483,-10120.9435042,0.00026671,2]
[343688630,1732866427506,-420.84481985,0.00026778,2]
[343688631,1732866427526,-502.23569212,0.00026878,2]
[343688632,1732866427549,-257.58826757,0.00026931,2]
[343688633,1732866427574,-500.0,0.00026937,2]
[343688634,1732866427596,-500.0,0.00026937,2]
[343688635,1732866427622,-500.0,0.00026937,2]
[343688636,1732866427645,-236.67136224,0.00026937,2]
[343688637,1732866427668,-500.0,0.00026937,2]
[343688638,1732866427691,-209.84982781,0.00026937,2]
[343688639,1732866427714,-500.0,0.00026937,2]
[343688640,1732866427737,-479.54465856,0.00026937,2]
[343688641,1732866427761,-500.0,0.00026937,2]
[343688642,1732866427784,-524.13168894,0.00026937,2]
[343688643,1732866427808,-2793.625,0.00027,5]
[343688644,1732866427830,-10120.9435042,0.0002701,2]
[343688645,1732866427852,-293.86973139,0.0002701,2]
[343688646,1732866427874,-10120.9435045,0.00027239,2]
[343688647,1732866427896,-168.523,0.00027265,16]
[343688648,1732866427918,-420.84481978,0.00027276,2]
[343688649,1732866427940,-655.17016159,0.000274,2]
[343688650,1732866427962,-655.17016159,0.00027425,2]
[343688651,1732866427983,-655.17016159,0.0002745,2]
[343688652,1732866428003,-655.17016159,0.00027475,2]
[343688653,1732866428024,-169.19,0.0002749,3]
[343688654,1732866428050,-1254.67,0.0002749,10]
[343688655,1732866428073,-1045.56,0.0002749,10]
[343688656,1732866428094,-871.3,0.0002749,10]
[343688657,1732866428116,-289.83230455,0.00027499,2]
[343688658,1732866428139,-1186.27424907,0.000275,2]
[343688659,1732866428162,-44980.75348603,0.000275,2]
[343688661,1732866441135,-1194.37276396,0.000275,2]
[343688667,1732866545119,-1169.27083333,0.0002275,2]
[343688719,1732866632166,-163.79254042,0.000274,2]
[343688720,1732866632175,-315.63361487,0.000274,2]
[343688721,1732866632185,-163.79254039,0.00027433,2]
[343688722,1732866632194,-163.79254039,0.00027467,2]
[343688723,1732866632204,-726.08,0.0002749,10]
[343688724,1732866632213,-300.0,0.00027498,2]
[343688725,1732866632222,-202.88261318,0.00027499,2]
[343688726,1732866632231,-219.94940651,0.00027499,2]
[343688727,1732866632241,-300.0,0.00027499,2]
[343688728,1732866632255,-195.91315426,0.000275,2]
[343688729,1732866632264,-175824.87375001,0.000275,2]
[343688730,1732866632274,-797.20016868,0.000275,2]
[343688731,1732866632283,-163.79254039,0.000275,2]
[343688732,1732866632292,-3087.90031581,0.00027599,2]
[343688733,1732866632302,-500.0,0.00027599,2]
[343688734,1732866632314,-506.78819072,0.000276,2]
[343688735,1732866632323,-224.61502091,0.000276,2]
[343688736,1732866632333,-631993.45093946,0.000276,2]
[343688737,1732866632343,-151.0,0.000276,11]
[343688738,1732866632351,-600.0,0.00027616,2]
[343688739,1732866632361,-177.917637,0.00027805,2]
[343688740,1732866632370,-797.20016861,0.00027807,2]
[343688741,1732866632379,-315.63361483,0.00027809,2]
[343688742,1732866632390,-600.0,0.00027904,2]
[343688743,1732866632399,-608.207,0.00027908,2]
[343688744,1732866632408,-1635.072,0.00027908,2]
[343688745,1732866632418,-406.92,0.00028,120]
[343688746,1732866632428,-500.0,0.00028,120]
[343688747,1732866632437,-500.0,0.00028,120]
[343688748,1732866632446,-630.59,0.00028,120]
[343688749,1732866632456,-300.0,0.00028,20]
[343688750,1732866632465,-300.0,0.00028,30]
[343688751,1732866632475,-1169.27083333,0.00028,2]
[343688752,1732866632485,-209.0,0.0002807,22]
[343688753,1732866632497,-797.20016861,0.00028114,2]
[343688754,1732866632506,-625.34774244,0.00028192,2]
[343688755,1732866632516,-315.63361483,0.00028218,2]
[343688756,1732866632525,-177.917637,0.00028268,2]
[343688757,1732866632535,-174.639718,0.00028317,2]
[343688758,1732866632545,-151.0,0.000284,19]
[343688759,1732866632554,-797.20016861,0.00028421,2]
[343688760,1732866632563,-151.0,0.000285,10]
[343688761,1732866632572,-187.442686,0.000285,2]
[343688762,1732866632582,-355.835275,0.000285,2]
[343688763,1732866632592,-501.16406799,0.00028573,5]
[343688764,1732866632601,-500.0,0.00028573,5]
[343688765,1732866632611,-500.0,0.00028573,5]
[343688766,1732866632620,-59237.17259537,0.000286,7]
[343688767,1732866632629,-46249.17984109,0.000286,7]
[343688768,1732866632639,-300.0,0.000286,14]
[343688769,1732866632648,-210.0,0.000286,30]
[343688770,1732866632658,-151.0,0.000286,7]
[343688771,1732866632667,-151.0,0.000286,7]
[343688772,1732866632676,-151.0,0.000286,7]
[343688773,1732866632685,-500.0,0.000286,10]
[343688774,1732866632695,-500.0,0.000286,10]
[343688775,1732866632705,-164.662939,0.000286,7]
[343688776,1732866632716,-164.662939,0.000286,7]
[343688777,1732866632726,-1637.7,0.000286,2]
[343688778,1732866632736,-151.0,0.000286,7]
[343688779,1732866632746,-151.0,0.000286,7]
[343688780,1732866632755,-150.0,0.000286,2]
[343688781,1732866632765,-151.0,0.000286,7]
[343688782,1732866632774,-315.63361483,0.00028627,2]
[343688783,1732866632783,-155.53,0.00028667,7]
[343688784,1732866632795,-666.0,0.00028667,2]
[343688785,1732866632805,-160.0,0.00028699,3]
[343688786,1732866632814,-151.0,0.000287,13]
[343688787,1732866632823,-797.20016861,0.00028728,2]
[343688788,1732866632832,-177.917637,0.00028732,2]
[343688789,1732866632841,-151.0,0.00028767,7]
[343688790,1732866632851,-151.0,0.00028767,7]
[343688791,1732866632860,-151.0,0.00028767,7]
[343688792,1732866632870,-249.655656,0.00028767,7]
[343688793,1732866632879,-151.0,0.00028767,7]
[343688794,1732866632889,-151.0,0.00028767,7]
[343688795,1732866632898,-501.62001979,0.00028767,3]
[343688796,1732866632907,-506.08976649,0.00028767,3]
[343688797,1732866632917,-501.19168392,0.00028767,3]
[343688798,1732866632926,-501.53088217,0.00028767,3]